bitfinex-derivatives/quotes_ETHF0:USTF0_20250314
["timestamp","ask_amount","ask_price","bid_price","bid_amount"]
[1741990933083,1.36039849,1926.1,1926.0,2.3747]
[1741990933381,1.36039849,1926.1,1926.0,5.7337]
[1741990934485,1.36039849,1926.1,1926.0,8.9415]
[1741990939986,2.39873849,1926.1,1926.0,7.9031]
[1741990940492,2.39873849,1926.1,1926.0,8.9415]
[1741990943689,2.39873849,1926.1,1925.9,0.00779849]
[1741990943690,1.0384,1926.0,1925.9,0.00779849]
[1741990943887,3.8397,1926.0,1925.9,0.00779849]
[1741990945285,2.8013,1926.0,1925.9,1.04624849]
[1741990945588,2.8013,1926.0,1925.9,2.45604849]
[1741990945891,3.8397,1926.0,1925.9,0.00779849]
[1741990946489,3.8397,1926.0,1925.9,1.35609849]
[1741990946796,0.00779849,1926.1,1926.0,1.0384]
[1741990946988,0.00779849,1926.1,1926.0,4.9067]
[1741990947184,0.00779849,1926.1,1926.0,6.255]
[1741990948188,5.974,1926.8,1926.6,1.03805]
[1741990948393,1.03806,1926.7,1926.6,4.24585]
[1741990948698,1.3704,1926.8,1926.6,4.24585]
[1741990948898,1.03802,1926.7,1926.6,4.24585]
[1741990949191,1.3704,1926.8,1926.6,4.24585]
[1741990949392,1.4407,1926.7,1926.6,5.65925]
[1741990949992,2.47872,1926.7,1926.6,5.65925]
[1741990950595,1.03807,1926.6,1926.5,4.39709]
[1741990950899,2.47877,1926.6,1926.5,7.60489]
[1741990951095,2.47877,1926.6,1926.5,3.2078]
[1741990951297,1.03813,1926.5,1926.4,3.358]
[1741990951500,3.19243,1926.5,1926.4,3.358]
[1741990951901,3.19243,1926.5,1926.4,4.39618]
[1741990953300,2.1543,1926.5,1926.4,4.39618]
[1741990953500,2.1543,1926.5,1926.4,5.78488]
[1741990954390,1.4407,1926.5,1926.4,5.78488]
[1741990954598,1.4407,1926.5,1926.4,6.44488]
[1741990957802,1.4407,1926.5,1926.4,5.78488]
[1741990958501,2.47883,1926.5,1926.4,5.78488]
[1741990958702,2.1186,1926.5,1926.3,3.2078]
[1741990958904,2.0902,1926.4,1926.3,5.69318]
[1741990959097,2.0902,1926.4,1926.3,9.05118]
[1741990963100,1.4209,1926.4,1926.3,9.05118]
[1741990963300,1.4209,1926.4,1926.3,9.71748]
[1741990963894,1.4209,1926.4,1926.3,9.05118]
[1741990965505,1.3812,1926.5,1926.4,1.03818]
[1741990965808,2.78,1926.5,1926.4,2.41108]
[1741990966305,3.81813,1926.5,1926.4,2.41108]
[1741990967901,3.81813,1926.5,1926.4,1.03818]
[1741990968104,3.81813,1926.5,1926.4,4.39618]
[1741990968301,3.81813,1926.5,1926.4,5.75988]
[1741990969202,2.78,1926.5,1926.4,5.75988]
[1741990972707,1.3988,1926.5,1926.4,5.75988]
[1741990982908,2.43693,1926.5,1926.4,3.358]
[1741990983114,1.3988,1926.5,1926.4,4.39618]
[1741990983415,1.3988,1926.5,1926.4,5.72308]
[1741990983621,2.43693,1926.5,1926.4,3.358]
[1741990984319,2.43693,1926.5,1926.4,4.39618]
[1741990984513,2.43693,1926.5,1926.4,5.72308]
[1741990984723,2.43693,1926.5,1926.4,3.358]
[1741990985219,2.43693,1926.5,1926.4,4.39618]
[1741990985422,2.43693,1926.5,1926.4,5.72308]
[1741990986112,2.43693,1926.5,1926.4,3.358]
[1741990986419,2.43693,1926.5,1926.4,4.39618]
[1741990987116,1.3988,1926.5,1926.4,4.39618]
[1741990987415,2.43693,1926.5,1926.4,4.39618]
[1741990987609,2.43693,1926.5,1926.4,5.79198]
[1741990988114,2.43693,1926.5,1926.4,4.7538]
[1741990988921,2.43693,1926.5,1926.4,5.79198]
[1741990989310,2.43693,1926.5,1926.4,3.358]
[1741990989812,2.43693,1926.5,1926.4,4.39618]
[1741990990307,1.3988,1926.5,1926.4,5.78628]
[1741990990509,2.43693,1926.5,1926.4,5.78628]
[1741990991722,2.43693,1926.5,1926.4,2.42828]
[1741990994213,2.43693,1926.5,1926.4,1.3901]
[1741990994414,2.43693,1926.5,1926.4,2.42828]
[1741990995518,2.43693,1926.5,1926.4,1.3901]
[1741990995721,1.03818,1926.4,1926.3,3.2078]
[1741990995914,3.84698,1926.4,1926.3,6.5648]
[1741990996415,3.84698,1926.4,1926.3,7.60303]
[1741990996716,3.84698,1926.4,1926.3,6.5648]
[1741990997318,3.84698,1926.4,1926.3,7.60303]
[1741990997517,3.84698,1926.4,1926.3,6.5648]
[1741990998823,3.84698,1926.4,1926.3,3.2078]
[1741991000723,1.03829,1926.2,1926.1,3.2078]
[1741991001022,1.0384,1926.0,1925.9,7.61203849]
[1741991002021,1.03839,1926.1,1926.0,1.03836]
[1741991002227,1.03839,1926.1,1926.0,2.46886]
[1741991002431,2.39609,1926.1,1926.0,2.46886]
[1741991005820,2.39609,1926.1,1926.0,1.4305]
[1741991006224,2.39609,1926.1,1926.0,2.4689]
[1741991006526,2.39609,1926.1,1926.0,1.4305]
[1741991007632,2.39609,1926.1,1926.0,2.4689]
[1741991009531,2.39609,1926.1,1926.0,1.4305]
[1741991010436,1.0384,1926.0,1925.9,0.00779849]
[1741991010637,2.4284,1926.0,1925.9,0.00779849]
[1741991012627,1.03861,1925.6,1925.5,3.2078]
[1741991012827,1.03861,1925.6,1925.5,5.56745]
[1741991013627,2.49561,1925.6,1925.5,4.5288]
[1741991014037,2.49561,1925.6,1925.5,3.2078]
[1741991014629,1.03867,1925.5,1925.4,0.00779849]
[1741991014838,2.49567,1925.5,1925.4,0.00779849]
[1741991015028,1.03872,1925.4,1925.3,1.4591]
[1741991015229,1.03883,1925.2,1925.1,31.9978]
[1741991015430,1.03883,1925.2,1925.1,1.4591]
[1741991015735,1.03894,1925.0,1924.9,4.39695]
[1741991016038,1.03894,1925.0,1924.9,5.85605]
[1741991016337,1.03899,1924.9,1924.8,3.21559849]
[1741991016639,3.14069,1924.9,1924.8,4.66849849]
[1741991017239,3.14069,1924.9,1924.8,3.21559849]
[1741991018238,3.14069,1924.9,1924.8,0.00779849]
[1741991029537,1.4325,1924.9,1924.8,5.63943849]
[1741991030044,1.03899,1924.9,1924.8,5.63943849]
[1741991030347,2.38469,1924.9,1924.8,5.63943849]
[1741991030637,0.00779849,1925.0,1924.9,1.03899]
[1741991030840,0.00779849,1925.0,1924.9,3.81309]
[1741991031442,1.33609849,1925.0,1924.9,3.81309]
[1741991032038,2.37503849,1925.0,1924.9,3.81309]
[1741991032233,1.33609849,1925.0,1924.9,3.81309]
[1741991033144,2.37503849,1925.0,1924.9,3.81309]
[1741991033543,1.33609849,1925.0,1924.9,3.81309]
[1741991033945,2.37503849,1925.0,1924.9,3.81309]
[1741991035052,2.37503849,1925.0,1924.9,2.7741]
[1741991035454,2.37503849,1925.0,1924.9,3.81309]
[1741991039445,1.33609849,1925.0,1924.9,7.17209]
[1741991039646,0.00779849,1925.0,1924.9,7.17209]
[1741991039853,1.3911,1925.4,1925.3,1.03877]
[1741991040255,1.03868,1925.5,1925.4,1.03868]
[1741991040549,2.36645,1925.6,1925.5,1.03867]
[1741991041344,2.36645,1925.6,1925.5,1.70627]
[1741991041547,2.36645,1925.6,1925.5,3.03617]
[1741991042849,2.36645,1925.6,1925.5,1.9975]
[1741991043158,2.36645,1925.6,1925.5,1.3299]
[1741991043457,1.03867,1925.5,1925.4,3.2078]
[1741991043653,1.3278,1925.6,1925.5,2.35427]
[1741991044555,0.00779849,1925.7,1925.6,1.03861]
[1741991044857,0.00779849,1925.7,1925.6,4.24641]
[1741991045858,0.00779849,1925.7,1925.6,7.60541]
[1741991047649,1.36599849,1925.7,1925.6,7.60541]
[1741991047850,2.40455849,1925.7,1925.6,7.60541]
[1741991048556,1.36599849,1925.7,1925.6,7.60541]
[1741991049560,0.00779849,1925.7,1925.6,7.60541]
[1741991053253,1.43299849,1925.7,1925.6,7.60541]
[1741991055256,2.47155849,1925.7,1925.6,3.2078]
[1741991056058,1.03867,1925.5,1925.4,4.24651]
[1741991056254,1.03877,1925.3,1925.2,5.79008]
[1741991056554,1.03877,1925.3,1925.2,3.358]
[1741991056761,1.03883,1925.2,1925.1,4.39684]
[1741991056960,3.86463,1925.2,1925.1,4.39684]
[1741991057260,3.86463,1925.2,1925.1,3.358]
[1741991058465,3.86463,1925.2,1925.1,4.39688]
[1741991058667,3.86463,1925.2,1925.1,5.79958]
[1741991059264,3.86463,1925.2,1925.1,4.7607]
[1741991059467,3.86463,1925.2,1925.1,3.358]
[1741991059669,3.86463,1925.2,1925.1,4.39688]
[1741991060267,2.8258,1925.2,1925.1,4.39688]
[1741991060470,2.8258,1925.2,1925.1,5.79958]
[1741991060968,3.86463,1925.2,1925.1,5.79958]
[1741991061968,3.86463,1925.2,1925.1,4.7607]
[1741991062364,2.8258,1925.2,1925.1,5.79958]
[1741991063572,3.86463,1925.2,1925.1,5.79958]
[1741991064472,3.86467,1925.2,1925.1,1.03888]
[1741991064674,2.8258,1925.2,1925.0,3.358]
[1741991064965,8.57057,1925.6,1925.0,9.1631]
[1741991065169,2.7449,1925.5,1925.4,1.03872]
[1741991065371,3.78357,1925.5,1925.4,1.03872]
[1741991065674,1.03872,1925.4,1925.3,5.77344]
[1741991065967,2.42012,1925.4,1925.3,5.77344]
[1741991067270,1.3814,1925.4,1925.3,5.77344]
[1741991068765,2.42012,1925.4,1925.3,5.77344]
[1741991068966,2.42012,1925.4,1925.3,1.3767]
[1741991069265,1.03877,1925.3,1925.2,7.60458]
[1741991069465,2.49877,1925.3,1925.2,9.02048]
[1741991069678,1.46,1925.3,1925.2,9.02048]
[1741991070974,2.49877,1925.3,1925.2,9.02048]
[1741991071576,1.46,1925.3,1925.2,9.02048]
[1741991071975,2.49877,1925.3,1925.2,9.02048]
[1741991072277,1.46,1925.3,1925.2,9.02048]
[1741991075073,1.03865,1925.6,1925.2,10.57869]
[1741991075272,0.68739849,1925.7,1925.4,3.2078]
[1741991075475,0.68739849,1925.7,1925.6,4.24641]
[1741991075780,1.72595849,1925.7,1925.6,4.24641]
[1741991076074,2.07619849,1925.7,1925.6,5.64841]
[1741991076279,3.11475849,1925.7,1925.6,5.64841]
[1741991076978,3.11475849,1925.7,1925.6,4.6098]
[1741991077169,3.11475849,1925.7,1925.6,5.64841]
[1741991077879,3.11475849,1925.7,1925.6,4.6098]
[1741991078074,3.11475849,1925.7,1925.6,3.2078]
[1741991078681,1.03861,1925.6,1925.5,4.39662]
[1741991078981,2.37861,1925.6,1925.5,4.39662]
[1741991079177,1.34,1925.6,1925.5,5.74732]
[1741991079383,2.37861,1925.6,1925.5,5.74732]
[1741991081382,2.37861,1925.6,1925.5,4.7087]
[1741991082081,2.37861,1925.6,1925.4,4.24648]
[1741991082082,1.03867,1925.5,1925.4,4.24648]
[1741991082278,3.04137,1925.5,1925.4,4.24648]
[1741991082584,3.04137,1925.5,1925.4,7.60448]
[1741991082879,1.03883,1925.3,1925.2,3.2078]
[1741991083078,1.03883,1925.3,1925.2,6.5658]
[1741991083278,1.03883,1925.3,1925.2,7.60462]
[1741991083479,0.6611,1925.3,1925.2,7.60462]
[1741991084283,1.384,1925.4,1925.3,1.03877]
[1741991084471,1.384,1925.4,1925.3,2.39187]
[1741991085077,2.42275,1925.4,1925.3,2.39187]
[1741991085685,2.42275,1925.4,1925.3,1.3531]
[1741991087189,2.42275,1925.4,1925.3,2.39187]
[1741991087888,2.42275,1925.4,1925.3,1.3531]
[1741991088487,2.42275,1925.4,1925.3,2.39187]
[1741991088689,2.42275,1925.4,1925.3,1.3531]
[1741991089285,1.03877,1925.3,1925.2,3.2078]
[1741991089592,2.35877,1925.3,1925.2,3.2078]
[1741991090179,3.91701,1925.3,1924.9,1.03895]
[1741991090394,1.03899,1924.9,1924.8,4.25461849]
[1741991090690,1.03899,1924.9,1924.8,6.57359849]
[1741991090891,1.03899,1924.9,1924.8,7.61263849]
[1741991091081,1.03899,1924.9,1924.8,4.25463849]
[1741991091589,1.70479,1924.9,1924.8,1.04683849]
[1741991092483,1.32,1925.0,1924.9,1.03899]
[1741991092788,3.03464,1925.0,1924.9,1.03899]
[1741991092994,3.03464,1925.0,1924.9,2.37959]
[1741991094990,1.9957,1925.0,1924.9,2.37959]
[1741991095589,1.32,1925.0,1924.9,2.37959]
[1741991095787,1.32,1925.0,1924.9,3.05829]
[1741991099196,0.7205,1925.3,1925.2,1.03883]
[1741991099197,1.75931,1925.3,1925.2,1.03883]
[1741991099395,1.75931,1925.3,1924.9,4.61677]
[1741991099396,1.03883,1925.2,1925.1,4.39684]
[1741991099595,1.75931,1925.3,1925.2,1.03883]
[1741991100499,3.08141,1925.3,1925.2,1.3842]
[1741991101093,3.08141,1925.3,1925.2,2.42303]
[1741991101294,3.08141,1925.3,1925.2,1.3842]
[1741991101688,1.03883,1925.2,1925.1,3.358]
[1741991101893,1.3916,1925.2,1925.1,4.39688]
[1741991102098,1.3916,1925.2,1925.1,5.74998]
[1741991102402,2.43043,1925.2,1925.1,5.74998]
[1741991104201,2.43043,1925.2,1925.1,4.7111]
[1741991104502,2.43043,1925.2,1925.1,5.74998]
[1741991105201,2.43043,1925.2,1925.1,3.358]
[1741991106300,2.43043,1925.2,1925.1,4.39688]
[1741991106702,2.43043,1925.2,1925.1,5.73128]
[1741991108207,2.43043,1925.2,1925.1,2.37328]
[1741991109599,2.43043,1925.2,1925.1,1.3344]
[1741991111008,1.03888,1925.1,1925.0,7.60471]
[1741991111311,2.35848,1925.1,1925.0,9.04571]
[1741991112312,1.3196,1925.1,1925.0,9.04571]
[1741991112810,2.35848,1925.1,1925.0,4.6488]
[1741991113012,2.35848,1925.1,1925.0,3.2078]
[1741991113209,1.03898,1925.0,1924.8,0.00779849]
[1741991113412,3.87818,1925.0,1924.8,1.04680849]
[1741991113713,3.87818,1925.0,1924.8,2.42810849]
[1741991113915,2.49509,1924.9,1924.8,2.42813849]
[1741991114116,1.4561,1924.9,1924.8,2.42813849]
[1741991114613,2.49509,1924.9,1924.8,2.42813849]
[1741991115716,1.4561,1924.9,1924.8,2.42813849]
[1741991118011,2.49509,1924.9,1924.8,2.42813849]
[1741991118607,1.4561,1924.9,1924.8,2.42813849]
[1741991119215,0.6606,1925.0,1924.9,1.03899]
[1741991119421,0.6606,1925.0,1924.9,5.56489]
[1741991119422,2.0427,1925.0,1924.9,5.56489]
[1741991119611,1.3821,1925.0,1924.9,5.56489]
[1741991123221,5.974,1925.2,1925.1,1.03888]
[1741991123814,5.974,1925.2,1925.0,3.358]
[1741991124114,5.974,1925.2,1925.1,3.2078]
[1741991124421,1.03884,1925.2,1925.1,4.24665]
[1741991124617,1.03884,1925.2,1925.1,5.65805]
[1741991125016,2.40522,1925.3,1925.2,1.03883]
[1741991125214,2.40522,1925.3,1925.2,2.45023]
[1741991126015,2.40522,1925.3,1925.2,1.4114]
[1741991128623,1.03883,1925.2,1925.1,2.46276]
[1741991128824,2.44473,1925.2,1925.1,2.46276]
[1741991135432,2.44473,1925.2,1925.1,1.4239]
[1741991135821,2.44473,1925.2,1925.1,2.46278]
[1741991136930,1.03894,1925.0,1924.9,4.39697]
[1741991137126,1.03899,1924.9,1924.8,4.25459849]
[1741991137327,1.03899,1924.9,1924.8,7.61259849]
[1741991137726,1.03899,1924.9,1924.8,6.57359849]
[1741991140031,1.03899,1924.9,1924.8,3.21559849]
[1741991140232,1.03899,1924.9,1924.8,4.25463849]
[1741991144429,1.3608,1925.0,1924.9,1.03899]
[1741991144630,7.01282,1925.3,1924.9,4.6819]
[1741991144829,1.3425,1925.1,1925.0,1.03894]
[1741991145133,1.3425,1925.1,1925.0,5.57064]
[1741991150140,2.46691,1925.3,1925.0,4.5317]
[1741991150441,1.74161,1925.3,1925.2,3.2078]
[1741991150833,1.74161,1925.3,1925.2,4.5437]
[1741991151138,5.974,1925.5,1925.4,1.03872]
[1741991151332,2.44293,1925.6,1925.5,1.03867]
[1741991151534,3.83715,1925.6,1925.4,2.392]
[1741991151733,1.3942,1925.5,1925.4,4.9305]
[1741991158040,2.43287,1925.5,1925.4,4.9305]
[1741991158740,2.43287,1925.5,1925.4,4.2465]
[1741991159942,1.3942,1925.5,1925.4,4.2465]
[1741991163640,2.43287,1925.5,1925.4,4.2465]
[1741991163843,1.3942,1925.5,1925.4,4.2465]
[1741991166742,2.43287,1925.5,1925.4,4.2465]
[1741991167642,2.43287,1925.5,1925.4,3.2078]
[1741991167848,2.43287,1925.5,1925.4,6.5648]
[1741991168147,2.43287,1925.5,1925.4,7.60352]
[1741991168745,1.3942,1925.5,1925.4,7.60352]
[1741991170147,2.43287,1925.5,1925.4,7.60352]
[1741991170346,1.3942,1925.5,1925.4,7.60352]
[1741991170848,2.43287,1925.5,1925.4,7.60352]
[1741991171151,1.3942,1925.5,1925.4,7.60352]
[1741991171442,1.3942,1925.5,1925.4,9.04422]
[1741991172147,0.6994,1925.6,1925.5,1.03867]
[1741991172354,1.4475,1925.8,1925.7,1.03856]
[1741991172553,1.4475,1925.8,1925.7,7.60236]
[1741991173055,1.4475,1925.8,1925.7,9.04306]
[1741991173448,1.3333,1926.1,1925.7,8.0045]
[1741991173642,1.3333,1926.1,1926.0,4.2462]
[1741991173840,1.3333,1926.1,1926.0,7.6022]
[1741991174550,1.03823,1926.3,1926.2,1.03829]
[1741991174752,1.03829,1926.2,1926.1,1.3396]
[1741991175051,1.03829,1926.2,1926.0,7.60215]
[1741991175251,1.03829,1926.2,1926.1,2.37794]
[1741991175558,1.03834,1926.1,1926.0,7.60218]
[1741991175749,1.03829,1926.2,1926.1,1.03832]
[1741991177051,1.03834,1926.1,1926.0,8.94176]
[1741991177251,1.03834,1926.1,1926.0,7.60216]
[1741991177551,1.0384,1926.0,1925.9,4.40221849]
[1741991177739,1.0384,1926.0,1925.9,5.75181849]
[1741991177944,1.03836,1926.1,1926.0,1.03835]
[1741991178143,1.03836,1926.1,1926.0,2.38795]
[1741991178854,1.0384,1926.0,1925.9,4.40220849]
[1741991179549,1.0384,1926.0,1925.9,5.75180849]
[1741991180049,1.03838,1926.1,1926.0,1.03837]
[1741991180253,1.03838,1926.1,1926.0,2.45667]
[1741991181748,1.0384,1926.0,1925.9,0.00779849]
[1741991181950,2.4662,1926.0,1925.9,0.00779849]
[1741991183953,2.4662,1926.0,1925.9,1.37009849]
[1741991184954,2.4662,1926.0,1925.9,0.00779849]
[1741991188758,1.03856,1925.7,1925.6,3.356]
[1741991189149,1.03861,1925.6,1925.5,3.2078]
[1741991189344,1.75421,1925.6,1925.5,3.2078]
[1741991189556,1.75421,1925.6,1925.3,3.356]
[1741991189557,0.7156,1925.6,1925.3,3.356]
[1741991189754,1.03872,1925.4,1925.3,3.356]
[1741991189951,1.03872,1925.4,1925.3,0.00779849]
[1741991190558,1.03872,1925.4,1925.3,1.04656849]
[1741991190753,1.03872,1925.4,1925.3,0.00779849]
[1741991190959,1.03872,1925.5,1925.4,1.03871]
[1741991191151,0.72339849,1925.6,1925.3,5.29849849]
[1741991191351,1.3614,1925.5,1925.3,5.29849849]
[1741991191556,2.40007,1925.5,1925.4,2.42237]
[1741991194363,1.3614,1925.5,1925.4,2.42237]
[1741991194663,2.40007,1925.5,1925.4,2.42237]
[1741991196263,2.40007,1925.5,1925.4,1.3837]
[1741991197067,1.3614,1925.5,1925.4,1.03872]
[1741991197265,1.3614,1925.5,1925.4,2.47792]
[1741991197857,2.40011,1925.5,1925.4,2.47792]
[1741991199165,2.40011,1925.5,1925.4,1.4392]
[1741991201667,2.40011,1925.5,1925.4,2.47792]
[1741991201967,2.40011,1925.5,1925.4,3.19552]
[1741991202266,2.40011,1925.5,1925.4,1.4392]
[1741991203159,2.40011,1925.5,1925.4,2.47792]
[1741991204260,1.03872,1925.4,1925.3,7.61032849]
[1741991204561,3.10122,1925.4,1925.3,3.21559849]
[1741991205060,3.10122,1925.4,1925.3,0.00779849]
[1741991205365,3.10122,1925.4,1925.3,1.40109849]
[1741991205570,3.10122,1925.4,1925.3,2.43986849]
[1741991206065,3.10122,1925.4,1925.3,1.40109849]
[1741991206267,3.10122,1925.4,1925.3,2.43986849]
[1741991206566,3.10122,1925.4,1925.3,1.40109849]
[1741991206966,3.10122,1925.4,1925.3,0.00779849]
[1741991207164,1.03872,1925.4,1925.3,0.00779849]
[1741991207467,1.03872,1925.4,1925.3,1.40109849]
[1741991207862,1.03872,1925.4,1925.3,2.43986849]
[1741991208070,1.03872,1925.4,1925.3,1.40109849]
[1741991209156,1.03872,1925.4,1925.3,2.43986849]
[1741991209366,1.03872,1925.4,1925.3,1.40109849]
[1741991209864,2.35619,1925.5,1925.3,1.40109849]
[1741991210068,1.03872,1925.4,1925.3,5.64763849]
[1741991210267,2.39782,1925.4,1925.3,6.36373849]
[1741991211264,1.3591,1925.4,1925.3,6.36373849]
[1741991212771,1.04643849,1925.6,1925.5,1.03867]
[1741991213072,2.44033849,1925.6,1925.5,4.39467]
[1741991216071,1.40169849,1925.6,1925.5,4.39467]
[1741991216674,0.00779849,1925.6,1925.5,8.30457]
[1741991217169,1.3806,1925.9,1925.8,1.0385]
[1741991217369,1.03842,1926.0,1925.9,1.03842]
[1741991217974,1.0384,1926.0,1925.9,4.24625]
[1741991218376,1.0384,1926.0,1925.9,5.64565]
[1741991220169,2.44028,1926.1,1926.0,1.0384]
[1741991220369,1.4019,1926.1,1926.0,2.38]
[1741991220576,1.4019,1926.1,1926.0,3.0964]
[1741991221577,1.03821,1926.4,1926.3,1.03823]
[1741991221871,1.3407,1926.4,1926.3,1.03823]
[1741991222373,1.3407,1926.4,1926.3,2.37983]
[1741991222871,2.37888,1926.4,1926.3,2.37983]
[1741991223172,1.3407,1926.4,1926.3,2.37983]
[1741991223475,1.3407,1926.4,1926.3,5.58763]
[1741991224573,2.37888,1926.4,1926.3,5.58763]
[1741991225378,2.37888,1926.4,1926.3,4.5494]
[1741991225575,2.37888,1926.4,1926.3,5.58763]
[1741991225773,2.37888,1926.4,1926.3,4.5494]
[1741991225974,2.37888,1926.4,1926.3,1.3416]
[1741991226774,2.37888,1926.4,1926.3,2.37983]
[1741991228279,2.37888,1926.4,1926.3,1.3416]
[1741991228476,1.3407,1926.4,1926.1,4.24611]
[1741991228669,1.03829,1926.2,1926.1,5.63471]
[1741991228870,1.03829,1926.2,1926.1,8.98971]
[1741991229072,2.43039,1926.2,1926.1,8.98971]
[1741991229378,1.3921,1926.2,1926.1,8.98971]
[1741991229877,2.7885,1926.2,1926.1,8.98971]
[1741991231675,3.82679,1926.2,1926.1,8.98971]
[1741991231886,3.82679,1926.2,1926.0,1.03835]
[1741991231887,1.03837,1926.1,1926.0,1.03835]
[1741991232074,1.0384,1926.0,1925.9,5.66643]
[1741991232273,1.0384,1926.0,1925.9,9.02143]
[1741991233382,1.0384,1926.0,1925.9,7.60123]
[1741991233582,1.0384,1926.0,1925.9,4.24623]
[1741991233886,1.0384,1926.0,1925.9,6.5628]
[1741991234067,1.0384,1926.0,1925.9,7.60125]
[1741991234272,1.0384,1926.0,1925.9,9.02145]
[1741991234575,2.47226,1926.1,1925.9,7.983]
[1741991234782,1.4339,1926.1,1926.0,2.4586]
[1741991235995,0.6694,1926.2,1926.1,1.03834]
[1741991236291,0.6694,1926.2,1926.1,5.65304]
[1741991236693,2.1118,1926.2,1926.1,5.65304]
[1741991237296,3.15009,1926.2,1926.1,5.65304]
[1741991237596,2.1118,1926.2,1926.1,5.65304]
[1741991238185,3.15009,1926.2,1926.1,5.65304]
[1741991238385,2.1118,1926.2,1926.1,5.65304]
[1741991238888,0.6639,1926.4,1926.3,1.03823]
[1741991239095,2.0574,1926.4,1926.3,7.60103]
[1741991241600,2.0574,1926.4,1926.3,9.00913]
[1741991246003,3.09558,1926.4,1926.3,7.60003]
[1741991246305,3.09558,1926.4,1926.3,6.5618]
[1741991246499,31.77630779,1928.4,1926.4,3.2078]
[1741991246699,28.56850779,1928.4,1928.0,3.2078]
[1741991246902,1.3693,1928.3,1928.1,3.499]
[1741991247198,1.03721,1928.2,1928.1,3.499]
[1741991247400,2.44931,1928.2,1928.0,3.2078]
[1741991247600,2.44566,1928.1,1928.0,3.2078]
[1741991248402,1.4084,1928.1,1928.0,4.24512]
[1741991248608,2.44566,1928.1,1928.0,3.2078]
[1741991249801,1.4084,1928.1,1927.8,3.2078]
[1741991249996,1.03737,1927.9,1927.8,3.2078]
[1741991253005,1.03737,1927.9,1927.8,2.1138]
[1741991253401,1.03748,1927.7,1927.6,28.789]
[1741991253607,1.03753,1927.6,1927.5,6.7028]
[1741991253908,1.03764,1927.4,1927.3,4.53267]
[1741991254112,1.03764,1927.4,1927.3,3.2078]
[1741991254316,1.03764,1927.4,1927.3,6.7038]
[1741991256401,2.40904,1927.4,1927.3,6.7038]
[1741991257703,1.0377,1927.3,1927.2,0.00779849]
[1741991257903,2.4091,1927.3,1927.2,3.49579849]
[1741991259805,2.4091,1927.3,1927.2,4.53354849]
[1741991260012,2.4091,1927.3,1927.2,3.49579849]
[1741991260511,2.4091,1927.3,1927.2,4.53354849]
[1741991260707,2.4091,1927.3,1927.2,3.49579849]
[1741991261306,2.4091,1927.3,1927.2,4.53354849]
[1741991262211,2.4091,1927.3,1927.2,3.49579849]
[1741991262709,2.4091,1927.3,1927.2,0.00779849]
[1741991264608,1.03786,1927.0,1926.9,31.9848]
[1741991265408,2.48696,1927.0,1926.9,31.9848]
[1741991265610,2.48696,1927.0,1926.9,28.777]
[1741991265806,1.03796,1926.8,1926.7,3.2078]
[1741991266012,1.03802,1926.7,1926.6,1.03806]
[1741991266321,2.42942,1926.7,1926.6,1.03806]
[1741991267115,1.03807,1926.6,1926.5,7.72769849]
[1741991267314,2.42947,1926.6,1926.5,7.72769849]
[1741991267615,2.42947,1926.6,1926.5,3.21559849]
[1741991267814,2.42947,1926.6,1926.5,4.25372849]
[1741991270018,2.42947,1926.6,1926.5,3.21559849]
[1741991271218,1.3914,1926.6,1926.5,4.25372849]
[1741991271521,8.56866,1927.0,1926.8,1.03794]
[1741991271522,5.974,1927.0,1926.8,1.03794]
[1741991271824,1.03801,1926.8,1926.7,1.038]
[1741991272325,1.03793,1926.9,1926.8,1.03792]
[1741991272716,1.03799,1926.8,1926.7,1.03797]
[1741991272916,1.3906,1926.8,1926.7,2.42317]
[1741991273517,1.3906,1926.8,1926.7,5.63097]
[1741991275125,2.42856,1926.8,1926.7,5.63097]
[1741991275523,6.69659849,1927.1,1926.7,7.18798]
[1741991275716,1.3297,1927.0,1926.9,1.03791]
[1741991277219,1.3297,1927.0,1926.9,4.49691]
[1741991277822,0.00779849,1927.1,1927.0,1.03786]
[1741991278019,0.00779849,1927.1,1927.0,4.92066]
[1741991278622,1.04562849,1927.1,1927.0,4.92066]
[1741991279227,0.00779849,1927.1,1927.0,4.92066]
[1741991280331,1.03771,1927.3,1927.0,3.8828]
[1741991280630,2.49411,1927.3,1927.2,3.2078]
[1741991280828,2.49411,1927.3,1927.2,6.6618]
[1741991281824,2.49411,1927.3,1927.2,7.69955]
[1741991282634,2.49411,1927.3,1927.2,3.2078]
[1741991282835,1.0378,1927.1,1927.0,8.37063]
[1741991289637,1.0378,1927.1,1927.0,7.3328]
[1741991289842,1.7383,1927.1,1927.0,7.3328]
[1741991290034,1.7383,1927.1,1927.0,6.6578]
[1741991291245,1.7383,1927.1,1926.8,1.70261]
[1741991291246,1.03791,1926.9,1926.8,3.8725]
[1741991291740,1.03802,1926.7,1926.6,1.03805]
[1741991291939,1.03802,1926.7,1926.6,9.01805]
[1741991292247,1.03802,1926.7,1926.6,4.544]
[1741991292444,1.03802,1926.7,1926.6,3.2078]
[1741991292644,1.03807,1926.6,1926.5,5.14662849]
[1741991292944,3.19847,1926.6,1926.5,6.48572849]
[1741991293530,3.19847,1926.6,1926.5,5.44759849]
[1741991293935,3.19847,1926.6,1926.5,6.48572849]
[1741991295435,3.19847,1926.6,1926.5,5.44759849]
[1741991296845,3.19847,1926.6,1926.5,6.48572849]
[1741991297038,3.19847,1926.6,1926.5,5.44759849]
[1741991297946,3.19847,1926.6,1926.5,6.48572849]
[1741991301649,3.19847,1926.6,1926.5,9.69352849]